fUST/lending_fUST_20260118
["ID","MTS","AMOUNT","RATE_DAILY","PERIOD"]
[402461238,1768681501826,-164.73874826,9.025e-05,2]
[402461239,1768681504011,-506.75163321,9.025e-05,2]
[402461240,1768681515224,-83.40741088,9.025e-05,2]
[402461241,1768681515254,-452.31812647,9.116e-05,2]
[402461242,1768681515286,-185.12151983,9.255e-05,2]
[402461243,1768681515315,-552.0,9.395e-05,2]
[402461244,1768681515346,-155.4,0.00010072,2]
[402461245,1768681515374,-170.349006,0.00010109,2]
[402461246,1768681515401,-388.70772049,0.00010355,2]
[402461247,1768681515432,-177.6,0.00010445,2]
[402461248,1768681515464,-199.8,0.00010818,2]
[402461249,1768681515492,-955.7847638,0.00011064,2]
[402461250,1768681515520,-300.0,0.00011153,2]
[402461251,1768681515549,-1200.0,0.00011153,2]
[402461252,1768681522381,359.03290506,0.00011154,2]
[402461253,1768681522404,4640.96709494,0.00011154,2]
[402461277,1768681832412,-407.03070456,9.265e-05,2]
[402461278,1768681832478,-1000.0,9.265e-05,2]
[402461279,1768681832489,-3592.96929544,9.265e-05,2]
[402461280,1768681832498,-4547.68187353,9.359e-05,2]
[402461281,1768681832508,-160.91,9.454e-05,2]
[402461282,1768681832517,-181.03,9.791e-05,2]
[402461283,1768681832526,-300.0,0.00010128,2]
[402461284,1768681832536,-188.43703057,0.00010129,2]
[402461285,1768681832545,-481.46188368,0.00010354,2]
[402461286,1768681832555,-185.14738505,0.00010395,2]
[402461287,1768681832564,-420.0,0.00011139,2]
[402461288,1768681832573,-3715.9576091,0.00011155,2]
[402461290,1768681832583,-500.0,0.0001213,2]
[402461292,1768681832592,-500.0,0.0001213,2]
[402461294,1768681832603,-500.0,0.0001213,2]
[402461295,1768681832613,-500.0,0.0001213,2]
[402461297,1768681832622,-250.0,0.00012242,2]
[402461299,1768681832631,-587.0,0.00012252,2]
[402461302,1768681832641,-34909.72511962,0.00012253,2]
[402461304,1768681832650,-500.0,0.00012329,2]
[402461306,1768681832660,-218.47391436,0.00012395,2]
[402461308,1768681832670,-304.941,0.0001254,2]
[402461310,1768681832679,-297.71944026,0.00012655,2]
[402461312,1768681832688,-500.0,0.00012929,2]
[402461314,1768681832697,-500.0,0.00013203,2]
[402461315,1768681832707,-500.0,0.00013273,2]
[402461318,1768681832716,-500.0,0.00013273,2]
[402461320,1768681832725,-500.0,0.00013273,2]
[402461321,1768681832735,-440.24648614,0.00013273,2]
[402461323,1768681832745,-500.0,0.00013273,2]
[402461325,1768681832754,-500.0,0.00013273,2]
[402461327,1768681832764,-500.0,0.00013273,2]
[402461329,1768681832774,-500.0,0.00013273,2]
[402461331,1768681832783,-500.0,0.00013273,2]
[402461333,1768681832793,-500.0,0.00013273,2]
[402461336,1768681832803,-500.0,0.00013273,2]
[402461338,1768681832811,-500.0,0.00013273,2]
[402461340,1768681832821,-500.0,0.00013273,2]
[402461342,1768681832830,-500.0,0.00013273,2]
[402461344,1768681832839,-500.0,0.00013273,2]
[402461346,1768681832848,-500.0,0.00013273,2]
[402461348,1768681832857,-500.0,0.00013273,2]
[402461350,1768681832866,-500.0,0.00013273,2]
[402461352,1768681832875,-500.0,0.00013273,2]
[402461354,1768681832885,-524.62460419,0.00013273,2]
[402461356,1768681832894,-500.0,0.00013273,2]
[402461358,1768681832904,-500.0,0.00013273,2]
[402461360,1768681832914,-158.0,0.00013273,2]
[402461362,1768681832923,-500.0,0.00013273,2]
[402461363,1768681832932,-500.0,0.00013273,2]
[402461366,1768681832942,-500.0,0.00013273,2]
[402461367,1768681832951,-500.0,0.00013273,2]
[402461368,1768681832960,-500.0,0.00013273,2]
[402461369,1768681832970,-500.0,0.00013273,2]
[402461370,1768681832979,-500.0,0.00013273,2]
[402461371,1768681832988,-500.0,0.00013273,2]
[402461372,1768681832997,-531.52827484,0.00013456,2]
[402461373,1768681833006,-515.94216386,0.00013456,2]
[402461374,1768681833016,-1923.92168717,0.00013457,2]
[402461375,1768681833025,-823.0,0.00013475,2]
[402461376,1768681833033,-500.0,0.00013477,2]
[402461377,1768681833042,-1348.80558912,0.00013598,2]
[402461378,1768681833052,-398.025611,0.00013673,2]
[402461379,1768681833061,-500.0,0.00013698,2]
[402461380,1768681833069,-500.0,0.00013698,2]
[402461381,1768681833079,-500.0,0.00013698,2]
[402461382,1768681833087,-500.0,0.00013698,2]
[402461383,1768681833097,-500.0,0.00013698,2]
[402461384,1768681833107,-500.0,0.00013698,2]
[402461385,1768681833116,-500.0,0.00013698,2]
[402461386,1768681833125,-649.34424817,0.00013698,2]
[402461387,1768681833134,-520.97489012,0.00013698,2]
[402461388,1768681833143,-567.7923432,0.00013698,2]
[402461389,1768681833152,-500.0,0.00013698,2]
[402461390,1768681833162,-500.0,0.00013698,2]
[402461391,1768681833171,-500.0,0.00013698,2]
[402461392,1768681833180,-500.0,0.00013698,2]
[402461393,1768681833190,-500.0,0.00013698,2]
[402461394,1768681833199,-500.0,0.00013698,2]
[402461395,1768681833208,-500.0,0.00013698,2]
[402461396,1768681833217,-218.61799449,0.00013698,2]
[402461397,1768681833227,-3133.42,0.00013698,2]
[402461398,1768681833236,-3133.42,0.00013698,2]
[402461399,1768681833245,-3133.42,0.00013698,2]
[402461400,1768681833256,-3133.42,0.00013698,2]
[402461401,1768681833265,-3133.42,0.00013698,2]
[402461402,1768681833275,-222.54703541,0.00013698,2]
[402461403,1768681833287,-2910.87296459,0.00013698,2]
[402461404,1768681833296,-3133.42,0.00013698,2]
[402461405,1768681833305,-3133.42,0.00013698,2]
[402461406,1768681833314,-442.19729277,0.00013698,2]
[402461407,1768681833325,-2691.22270723,0.00013698,2]
[402461408,1768681833336,-3133.42,0.00013698,2]
[402461409,1768681833349,-3133.42,0.00013698,2]
[402461410,1768681833358,-2925.56588418,0.00013698,2]
[402461411,1768681833420,-488.92733702,0.0001213,2]
[402461412,1768681833429,-500.0,0.0001213,2]
[402461413,1768681833438,-150.12055794,0.0001213,2]
[402461414,1768681833449,-349.87944206,0.0001213,2]
[402461415,1768681833458,-500.0,0.0001213,2]
[402461416,1768681833468,-500.0,0.0001213,2]
[402461417,1768681833477,-500.0,0.00012329,2]
[402461418,1768681833487,-500.0,0.00012329,2]
[402461419,1768681833497,-207.85411582,0.00013698,2]
[402461420,1768681833506,-1235.73596501,0.00013698,2]
[402461426,1768681838640,-500.0,0.0001213,2]
[402461427,1768681838649,-344.41046759,0.0001213,2]
[402461428,1768681838660,-500.0,0.0001213,2]
[402461430,1768681838670,-500.0,0.0001213,2]
[402461432,1768681838680,-530.55435189,0.0001213,2]
[402461434,1768681838690,-500.0,0.0001213,2]
[402461436,1768681838700,-500.0,0.0001213,2]
[402461438,1768681838709,-500.0,0.0001213,2]
[402461440,1768681838719,-500.0,0.0001213,2]
[402461442,1768681838728,-241.88942944,0.0001213,2]
[402461445,1768681838737,-500.0,0.0001213,2]
[402461447,1768681838747,-500.0,0.0001213,2]
[402461449,1768681838756,-500.0,0.00012329,2]
[402461451,1768681838766,-500.0,0.00012329,2]
[402461453,1768681838776,-500.0,0.00012329,2]
[402461455,1768681838784,-500.0,0.00012329,2]
[402461457,1768681838794,-500.0,0.00012329,2]
[402461459,1768681838803,-500.0,0.00012329,2]
[402461461,1768681838812,-555.14101351,0.00012329,2]
[402461463,1768681838821,-500.0,0.00012329,2]
[402461465,1768681838831,-1897.68403499,0.00013698,2]
[402461467,1768681838840,-3133.42,0.00013698,2]
[402461469,1768681838850,-3133.42,0.00013698,2]
[402461471,1768681838860,-3133.42,0.00013698,2]
[402461473,1768681838869,-3133.42,0.00013698,2]
[402461475,1768681838879,-3133.42,0.00013698,2]
[402461477,1768681838888,-3133.42,0.00013698,2]
[402461479,1768681838897,-3133.42,0.00013698,2]
[402461481,1768681838906,-3133.42,0.00013698,2]
[402461482,1768681838915,-3133.42,0.00013698,2]
[402461484,1768681838924,-3133.42,0.00013698,2]
[402461486,1768681838933,-3133.5769842,0.00013698,2]
[402461488,1768681838943,-500.0,0.00013698,2]
[402461490,1768681838952,-500.0,0.00013698,2]
[402461492,1768681838961,-500.0,0.00013698,2]
[402461494,1768681838971,-500.0,0.00013698,2]
[402461496,1768681838980,-567.1775226,0.00013698,2]
[402461498,1768681838989,-500.0,0.00013698,2]
[402461500,1768681838999,-500.0,0.00013698,2]
[402461502,1768681839008,-500.0,0.00013698,2]
[402461504,1768681839018,-500.0,0.00013698,2]
[402461506,1768681839028,-500.0,0.00013698,2]
[402461508,1768681839037,-500.0,0.00013698,2]
[402461510,1768681839047,-500.0,0.00013698,2]
[402461512,1768681839056,-500.0,0.00013698,2]
[402461514,1768681839065,-204.90208499,0.00013698,2]
[402461516,1768681839075,-500.0,0.00013698,2]
[402461518,1768681839084,-500.0,0.00013698,2]
[402461520,1768681839094,-500.0,0.00013698,2]
[402461522,1768681839103,-500.0,0.00013698,2]
[402461524,1768681839112,-1000.0,0.00013698,2]
[402461526,1768681839121,-500.0,0.00013698,2]
[402461528,1768681839131,-1000.0,0.00013698,2]
[402461530,1768681839141,-1000.0,0.00013698,2]
[402461532,1768681839151,-1000.0,0.00013698,2]
[402461534,1768681839161,-1000.0,0.00013698,2]
[402461536,1768681839170,-1000.0,0.00013698,2]
[402461538,1768681839179,-1000.0,0.00013698,2]
[402461540,1768681839188,-1019.17213815,0.00013698,2]
[402461542,1768681839199,-500.0,0.00013698,2]
[402461544,1768681839209,-500.0,0.00013698,2]
[402461545,1768681839219,-500.0,0.00013698,2]
[402461547,1768681839228,-500.0,0.00013698,2]
[402461549,1768681839237,-500.0,0.00013698,2]
[402461551,1768681839247,-500.0,0.00013698,2]
[402461553,1768681839257,-500.0,0.00013698,2]
[402461555,1768681839267,-958.3,0.00013698,2]
[402461558,1768681839276,-958.3,0.00013698,2]
[402461559,1768681839286,-958.3,0.00013698,2]
[402461561,1768681839295,-958.3,0.00013698,2]
[402461563,1768681839304,-958.3,0.00013698,2]
[402461565,1768681839313,-958.3,0.00013698,2]
[402461567,1768681839322,-958.3,0.00013698,2]
[402461569,1768681839331,-958.3,0.00013698,2]
[402461571,1768681839343,-958.3,0.00013698,2]
[402461573,1768681839352,-958.3,0.00013698,2]
[402461575,1768681839361,-958.3,0.00013698,2]
[402461577,1768681839370,-958.3,0.00013698,2]
[402461579,1768681839379,-958.3,0.00013698,2]
[402461581,1768681839389,-958.3,0.00013698,2]
[402461583,1768681839398,-958.3,0.00013698,2]
[402461585,1768681839408,-958.3,0.00013698,2]
[402461587,1768681839420,-958.3,0.00013698,2]
[402461589,1768681839429,-958.3,0.00013698,2]
[402461591,1768681839439,-958.3,0.00013698,2]
[402461593,1768681839448,-958.3,0.00013698,2]
[402461595,1768681839457,-958.3,0.00013698,2]
[402461597,1768681839467,-958.3,0.00013698,2]
[402461599,1768681839476,-958.3,0.00013698,2]
[402461601,1768681839484,-958.38907998,0.00013698,2]
[402461603,1768681839494,-500.0,0.00013698,2]
[402461605,1768681839503,-500.0,0.00013698,2]
[402461606,1768681839512,-500.0,0.00013698,2]
[402461608,1768681839521,-500.0,0.00013698,2]
[402461610,1768681839531,-500.0,0.00013698,2]
[402461612,1768681839540,-500.0,0.00013698,2]
[402461614,1768681839549,-500.0,0.00013698,2]
[402461616,1768681839559,-500.0,0.00013698,2]
[402461618,1768681839569,-500.0,0.00013698,2]
[402461620,1768681839578,-500.0,0.00013698,2]
[402461622,1768681839588,-500.0,0.00013698,2]
[402461624,1768681839597,-500.0,0.00013698,2]
[402461626,1768681839607,-500.0,0.00013698,2]
[402461628,1768681839616,-500.0,0.00013698,2]
[402461630,1768681839626,-500.0,0.00013698,2]
[402461632,1768681839635,-500.0,0.00013698,2]
[402461634,1768681839645,-500.0,0.00013698,2]
[402461636,1768681839654,-500.0,0.00013698,2]
[402461638,1768681839663,-500.0,0.00013698,2]
[402461640,1768681839672,-436.72021913,0.00013698,2]
[402461642,1768681839681,-1325.75,0.00013698,2]
[402461644,1768681839691,-1325.75,0.00013698,2]
[402461646,1768681839699,-1325.75,0.00013698,2]
[402461648,1768681839709,-1325.75,0.00013698,2]
[402461650,1768681839718,-1325.75,0.00013698,2]
[402461652,1768681839727,-1325.75,0.00013698,2]
[402461654,1768681839737,-1325.75,0.00013698,2]
[402461656,1768681839746,-1325.75,0.00013698,2]
[402461658,1768681839755,-1325.75,0.00013698,2]
[402461659,1768681839765,-1325.75,0.00013698,2]
[402461661,1768681839775,-1325.75,0.00013698,2]
[402461663,1768681839785,-1325.75,0.00013698,2]
[402461665,1768681839794,-1325.75,0.00013698,2]
[402461667,1768681839803,-1325.75,0.00013698,2]
[402461669,1768681839812,-1325.75,0.00013698,2]
[402461671,1768681839820,-1325.75,0.00013698,2]
[402461673,1768681839829,-1325.75,0.00013698,2]
[402461675,1768681839838,-1325.75,0.00013698,2]
[402461677,1768681839847,-1325.75,0.00013698,2]
[402461679,1768681839856,-1325.75,0.00013698,2]
[402461681,1768681839865,-1325.75,0.00013698,2]
[402461683,1768681839874,-1325.75,0.00013698,2]
[402461685,1768681839884,-1325.75,0.00013698,2]
[402461687,1768681839893,-1325.83547327,0.00013698,2]
[402461689,1768681839903,-975.4,0.00013698,2]
[402461691,1768681839912,-975.4,0.00013698,2]
[402461693,1768681839922,-975.4,0.00013698,2]
[402461695,1768681839932,-975.4,0.00013698,2]
[402461697,1768681839941,-975.4,0.00013698,2]
[402461699,1768681839950,-975.4,0.00013698,2]
[402461701,1768681839959,-975.4,0.00013698,2]
[402461703,1768681839968,-975.4,0.00013698,2]
[402461705,1768681839979,-975.4,0.00013698,2]
[402461707,1768681839988,-975.4,0.00013698,2]
[402461709,1768681839997,-975.4,0.00013698,2]
[402461711,1768681840006,-975.4,0.00013698,2]
[402461713,1768681840015,-975.4,0.00013698,2]
[402461715,1768681840024,-975.4,0.00013698,2]
[402461717,1768681840033,-975.4,0.00013698,2]
[402461719,1768681840043,-975.4,0.00013698,2]
[402461721,1768681840052,-975.4,0.00013698,2]
[402461722,1768681840061,-975.4,0.00013698,2]
[402461724,1768681840071,-975.4,0.00013698,2]
[402461726,1768681840080,-975.4,0.00013698,2]
[402461728,1768681840089,-975.4,0.00013698,2]
[402461730,1768681840098,-975.4,0.00013698,2]
[402461732,1768681840108,-975.4,0.00013698,2]
[402461734,1768681840116,-975.56822598,0.00013698,2]
[402461736,1768681840126,-500.0,0.00013698,2]
[402461738,1768681840135,-500.0,0.00013698,2]
[402461740,1768681840145,-275.23827501,0.00013698,2]
[402461742,1768681840154,-505.79259852,0.00013698,2]
[402461744,1768681840164,-3888.61,0.00013698,2]
[402461746,1768681840173,-3888.61,0.00013698,2]
[402461748,1768681840182,-3888.61,0.00013698,2]
[402461750,1768681840191,-3888.61,0.00013698,2]
[402461752,1768681840200,-3888.61,0.00013698,2]
[402461754,1768681840209,-3888.61,0.00013698,2]
[402461756,1768681840218,-3888.61,0.00013698,2]
[402461795,1768681840455,-3888.61,0.00013698,2]
[402461797,1768681840465,-3888.61,0.00013698,2]
[402461799,1768681840476,-3888.61,0.00013698,2]
[402461801,1768681840486,-3888.61,0.00013698,2]
[402461803,1768681840495,-3888.61,0.00013698,2]
[402461805,1768681840506,-3888.61,0.00013698,2]
[402461807,1768681840518,-3888.61,0.00013698,2]
[402461809,1768681840530,-3888.61,0.00013698,2]
[402461811,1768681840539,-3888.61,0.00013698,2]
[402461813,1768681840548,-3888.61,0.00013698,2]
[402461815,1768681840558,-3888.61,0.00013698,2]
[402461817,1768681840567,-3888.61,0.00013698,2]
[402461819,1768681840577,-3888.61,0.00013698,2]
[402461821,1768681840586,-3888.61,0.00013698,2]
[402461823,1768681840595,-3888.61,0.00013698,2]
[402461825,1768681840605,-3888.61,0.00013698,2]
[402461827,1768681840615,-3888.71705445,0.00013698,2]
[402461829,1768681840624,-1125.11,0.00013698,2]
[402461831,1768681840634,-1125.11,0.00013698,2]
[402461833,1768681840643,-1125.11,0.00013698,2]
[402461835,1768681840653,-1125.11,0.00013698,2]
[402461837,1768681840663,-1125.11,0.00013698,2]
[402461839,1768681840673,-1125.11,0.00013698,2]
[402461841,1768681840681,-1125.11,0.00013698,2]
[402461843,1768681840691,-1125.11,0.00013698,2]
[402461845,1768681840700,-1125.11,0.00013698,2]
[402461847,1768681840709,-1125.11,0.00013698,2]
[402461849,1768681840718,-1125.11,0.00013698,2]
[402461851,1768681840727,-1125.11,0.00013698,2]
[402461853,1768681840737,-1125.11,0.00013698,2]
[402461855,1768681840747,-1125.11,0.00013698,2]
[402461857,1768681840757,-1125.11,0.00013698,2]
[402461859,1768681840767,-1125.11,0.00013698,2]
[402461861,1768681840776,-1125.11,0.00013698,2]
[402461863,1768681840786,-1125.11,0.00013698,2]
[402461865,1768681840795,-1125.11,0.00013698,2]
[402461867,1768681840804,-1125.11,0.00013698,2]
[402461869,1768681840813,-1125.11,0.00013698,2]
[402461871,1768681840823,-1125.11,0.00013698,2]
[402461873,1768681840833,-1125.11,0.00013698,2]
[402461875,1768681840842,-1125.26885637,0.00013698,2]
[402461877,1768681840852,-500.0,0.00013698,2]
[402461879,1768681840861,-500.0,0.00013698,2]
[402461881,1768681840870,-500.0,0.00013698,2]
[402461882,1768681840880,-500.0,0.00013698,2]
[402461885,1768681840890,-500.0,0.00013698,2]
[402461886,1768681840900,-500.0,0.00013698,2]
[402461889,1768681840911,-500.0,0.00013698,2]
[402461891,1768681840921,-589.78946072,0.00013698,2]
[402461892,1768681840932,-134320.3669689,0.00013699,2]
[402461894,1768681840941,-500.0,0.00013699,2]
[402461896,1768681840951,-500.0,0.00013699,2]
[402461898,1768681840962,-500.0,0.00013699,2]
[402461900,1768681840971,-500.0,0.00013699,2]
[402461902,1768681840981,-431.73453214,0.00013699,2]
[402461904,1768681840990,-500.0,0.00013699,2]
[402461906,1768681841000,-500.0,0.00013699,2]
[402461908,1768681841009,-500.0,0.00013699,2]
[402461910,1768681841018,-500.0,0.00013699,2]
[402461912,1768681841027,-500.0,0.00013699,2]
[402461914,1768681841037,-158.0,0.00013699,2]
[402461916,1768681841047,-158.0,0.00013699,2]
[402461918,1768681841056,-500.0,0.00013699,2]
[402461920,1768681841065,-500.0,0.00013699,2]
[402461922,1768681841074,-160.0,0.00013699,2]
[402461924,1768681841095,-500.0,0.00013699,2]
[402461926,1768681841104,-500.0,0.00013699,2]
[402461928,1768681841113,-500.0,0.00013699,2]
[402461930,1768681841122,-500.0,0.00013699,2]
[402461932,1768681841131,-238.2,0.00013699,2]
[402461934,1768681841141,-310.63775509,0.00013699,2]
[402461936,1768681841150,-587.52830239,0.00013699,2]
[402461938,1768681841159,-500.0,0.00013699,2]
[402461940,1768681841168,-160.0,0.00013699,2]
[402461942,1768681841178,-500.0,0.00013699,2]
[402461944,1768681841187,-158.0,0.00013699,2]
[402461946,1768681841196,-238.0,0.00013699,2]
[402461948,1768681841205,-502.15537152,0.00013699,2]
[402461950,1768681841215,-194.1362209,0.00013699,2]
[402461952,1768681841230,-500.0,0.00013699,2]
[402461954,1768681841249,-158.0,0.00013699,2]
[402461956,1768681841268,-500.0,0.00013699,2]
[402461958,1768681841277,-158.2,0.00013699,2]
[402461960,1768681841289,-500.0,0.00013699,2]
[402461961,1768681841309,-500.0,0.00013699,2]
[402461963,1768681841324,-500.0,0.00013699,2]
[402461965,1768681841335,-500.0,0.00013699,2]
[402461967,1768681841350,-500.0,0.00013699,2]
[402461969,1768681841362,-207.07964308,0.00013699,2]
[402461971,1768681841371,-494.39702115,0.00013751,2]
[402461973,1768681841380,-505.25947973,0.00013821,2]
[402461975,1768681841390,-522.04357159,0.00013821,2]
[402461977,1768681841398,-1000.0,0.00013821,2]
[402461979,1768681841408,-374.47725203,0.00013821,2]
[402461981,1768681841418,-1000.0,0.00013821,2]
[402461983,1768681841427,-453.71259255,0.00013821,2]
[402461985,1768681841436,-505.69222847,0.00013821,2]
[402461987,1768681841448,-1000.0,0.00013821,2]
[402461989,1768681841458,-1000.0,0.00013821,2]
[402461991,1768681841467,-1000.0,0.00013821,2]
[402461993,1768681841477,-1000.85139614,0.00013821,2]
[402461995,1768681841486,-1000.0,0.00013821,2]
[402461996,1768681841495,-1000.0,0.00013821,2]
[402461998,1768681841505,-166.45896527,0.00013821,2]
[402462000,1768681841514,-502.83955258,0.00013821,2]
[402462002,1768681841523,-1000.0,0.00013821,2]
[402462004,1768681841533,-1000.0,0.00013821,2]
[402462006,1768681841543,-1000.0,0.00013821,2]
[402462008,1768681841552,-1000.0,0.00013821,2]
[402462010,1768681841561,-1000.0,0.00013821,2]
[402462012,1768681841570,-100000.0,0.00014006,2]
[402462014,1768681841579,-1019.10615049,0.00014247,2]
[402462016,1768681841589,-666.91973232,0.00014247,2]
[402462018,1768681841597,-1148.13731473,0.00014247,2]
[402462020,1768681841607,-500.0,0.00014247,2]
[402462022,1768681841617,-250.0,0.00014247,2]
[402462024,1768681841626,-1000.0,0.00014247,2]
[402462026,1768681841635,-1140.95571878,0.00014247,2]
[402462028,1768681841646,-920.73215922,0.00014247,2]
[402462030,1768681841655,-505.85156425,0.00014247,2]
[402462032,1768681841665,-505.35037186,0.00014247,2]
[402462034,1768681841674,-1083.81618829,0.00014247,2]
[402462036,1768681841683,-1000.0,0.00014247,2]
[402462038,1768681841693,-500.85672121,0.00014247,2]
[402462040,1768681841702,-1000.0,0.00014247,2]
[402462041,1768681841710,-186.7596,0.00014247,2]
[402462043,1768681841720,-1000.0,0.00014247,2]
[402462045,1768681841729,-1002.84499725,0.00014247,2]
[402462047,1768681841738,-1000.0,0.00014247,2]
[402462049,1768681841748,-1000.0,0.00014247,2]
[402462051,1768681841757,-502.90945713,0.00014247,2]
[402462053,1768681841766,-1000.0,0.00014247,2]
[402462055,1768681841775,-1000.0,0.00014247,2]
[402462057,1768681841784,-1097.74982003,0.00014247,2]
[402462059,1768681841794,-1000.0,0.00014247,2]
[402462061,1768681841803,-1348.80558908,0.00014283,2]
[402462063,1768681841812,-1470.89070314,0.00014368,2]
[402462065,1768681841822,-500.0,0.00014368,2]
[402462067,1768681841831,-500.0,0.00014368,2]
[402462069,1768681841840,-1500.0,0.00014368,2]
[402462071,1768681841850,-1504.04282277,0.00014368,2]
[402462073,1768681841859,-1500.0,0.00014368,2]
[402462075,1768681841869,-1500.0,0.00014368,2]
[402462077,1768681841878,-500.0,0.00014368,2]
[402462079,1768681841887,-500.0,0.00014368,2]
[402462081,1768681841897,-1500.0,0.00014368,2]
[402462083,1768681841906,-1500.0,0.00014368,2]
[402462085,1768681841915,-1500.0,0.00014368,2]
[402462087,1768681841924,-269.96129392,0.00014377,7]
[402462089,1768681841933,-251.80044367,0.00014395,2]
[402462091,1768681841943,-5000.0,0.0001451,2]
[402462093,1768681841952,-239.92258785,0.00014596,7]
[402462095,1768681841962,-201.38164885,0.00014795,2]
[402462097,1768681841971,-1500.0,0.00014795,2]
[402462099,1768681841980,-1500.0,0.00014795,2]
[402462101,1768681841989,-1000.0,0.00014795,2]
[402462102,1768681841998,-160.83132082,0.00014795,2]
[402462103,1768681842007,-1500.0,0.00014795,2]
[402462104,1768681842015,-993.74297815,0.00014795,2]
[402462105,1768681842024,-1500.0,0.00014795,2]
[402462106,1768681842033,-1500.0,0.00014795,2]
[402462107,1768681842042,-784.0,0.00014821,2]
[402462108,1768681842051,-239.92258785,0.0001487,7]
[402462109,1768681842061,-500.0,0.00014916,2]
[402462110,1768681842070,-2000.0,0.00014916,2]
[402462111,1768681842079,-1706.44598023,0.00014916,2]
[402462112,1768681842087,-1504.15629489,0.00014916,2]
[402462113,1768681842096,-2000.0,0.00014916,2]
[402462114,1768681842105,-2000.0,0.00014916,2]
[402462115,1768681842114,-180.10446059,0.0001494,2]
[402462116,1768681842123,-1348.80558908,0.00014968,2]
[402462117,1768681842131,-151.0,0.00014984,2]
[402462118,1768681842141,-445.202766,0.00014984,2]
[402462119,1768681842149,-162.380719,0.00014984,2]
[402462120,1768681842158,-300.73,0.00014984,2]
[402462121,1768681842167,-2000.0,0.00014984,2]
[402462122,1768681842176,-2000.0,0.00014984,2]
[402462123,1768681842185,-30000.0,0.00014984,2]
[402462124,1768681842194,-2000.0,0.00014984,2]
[402462125,1768681842203,-2150.738,0.00014984,2]
[402462126,1768681842211,-2000.0,0.00014984,2]
[402462127,1768681842221,-2000.0,0.00014984,2]
[402462128,1768681842230,-500.0,0.00014984,2]
[402462129,1768681842239,-500.0,0.00014984,2]
[402462130,1768681842248,-500.0,0.00014984,2]
[402462131,1768681842257,-500.0,0.00014984,2]
[402462132,1768681842266,-500.0,0.00014984,2]
[402462133,1768681842276,-2000.0,0.00014984,2]
[402462134,1768681842284,-231.36846651,0.00014984,2]
[402462135,1768681842294,-2000.0,0.00014984,2]
[402462136,1768681842303,-2000.0,0.00014984,2]
[402462137,1768681842312,-162.380719,0.00014984,2]
[402462138,1768681842321,-168.3888056,0.00014984,2]
[402462139,1768681842330,-174.61919141,0.00014984,2]
[402462141,1768681842341,-181.08010149,0.00014984,2]
[402462143,1768681842353,-187.78006525,0.00014984,2]
[402462145,1768681842362,-194.72792766,0.00014984,2]
[402462147,1768681842371,-201.93286099,0.00014984,2]
[402462149,1768681842381,-209.40437684,0.00014984,2]
[402462151,1768681842390,-217.15233878,0.00014984,2]
[402462153,1768681842399,-225.18697532,0.00014984,2]
[402462154,1768681842408,-233.51889341,0.00014984,2]
[402462156,1768681842418,-242.15909246,0.00014984,2]
[402462158,1768681842427,-251.11897888,0.00014984,2]
[402462160,1768681842437,-260.4103811,0.00014984,2]
[402462162,1768681842447,-270.0455652,0.00014984,2]
[402462164,1768681842456,-280.03725112,0.00014984,2]
[402462166,1768681842466,-290.39862941,0.00014984,2]
[402462168,1768681842476,-301.1433787,0.00014984,2]
[402462170,1768681842486,-1957.856,0.00014984,2]